bitfinex/quotes_ETHUSD_20241001
["timestamp","ask_amount","ask_price","bid_price","bid_amount"]
[1727821482795,0.22964807,2460.1,2460.0,4.47450152]
[1727821483002,4.06458,2460.3,2460.0,4.47450152]
[1727821483233,0.22964807,2460.1,2460.0,4.47450152]
[1727821483434,4.06458,2460.3,2460.0,0.7534]
[1727821483645,0.22964807,2460.1,2460.0,0.7534]
[1727821483939,0.22970425,2460.1,2460.0,0.7534]
[1727821484139,4.06458,2460.3,2460.0,0.7534]
[1727821484350,0.22970425,2460.1,2460.0,0.7534]
[1727821484512,4.06458,2460.3,2460.0,0.7534]
[1727821484722,0.22970425,2460.1,2460.0,0.7534]
[1727821484916,4.06458,2460.3,2460.0,0.7534]
[1727821485116,4.06479,2460.2,2460.0,0.7534]
[1727821485430,4.06487,2460.1,2459.8,0.791]
[1727821485749,1.04264125,2460.2,2459.7,4.85652]
[1727821485750,0.22968696,2460.0,2459.7,4.85652]
[1727821486060,8.12956,2460.2,2459.7,4.85652]
[1727821486224,0.22966968,2459.9,2459.7,0.791]
[1727821486550,0.22966968,2459.8,2459.7,0.791]
[1727821486847,4.06498,2460.1,2459.7,5.71430015]
[1727821487029,0.22966968,2459.8,2459.7,5.71430015]
[1727821487233,4.06498,2460.1,2459.7,5.71430015]
[1727821487542,4.0648,2460.2,2459.7,5.71430015]
[1727821487754,0.22966968,2460.0,2459.7,5.71430015]
[1727821487917,4.0648,2460.2,2459.7,5.71430015]
[1727821488121,0.22966968,2459.9,2459.7,5.71430015]
[1727821488334,4.0648,2460.2,2459.7,5.71430015]
[1727821488535,0.22966968,2459.8,2459.7,4.85653]
[1727821488742,4.0648,2460.2,2459.7,4.85653]
[1727821488951,0.22966968,2459.8,2459.7,4.85653]
[1727821489243,4.0648,2460.2,2459.7,4.85653]
[1727821489449,4.06456,2460.3,2459.7,0.791]
[1727821489754,4.06456,2460.3,2459.7,4.85642]
[1727821489909,0.22966968,2460.2,2459.8,8.72544204]
[1727821490107,4.06456,2460.3,2459.8,8.64414367]
[1727821490318,0.22973449,2460.1,2460.0,7.78604152]
[1727821490636,9.92674107,2460.7,2460.1,4.06483]
[1727821490637,4.06436,2460.5,2460.1,4.06483]
[1727821490952,4.06406,2460.6,2460.1,4.06483]
[1727821491239,4.06406,2460.6,2460.1,5.32901715]
[1727821491649,4.06428,2460.5,2460.1,1.26418715]
[1727821491805,4.06428,2460.5,2460.0,12.64198152]
[1727821492346,4.06428,2460.5,2460.1,4.06485]
[1727821494046,7.8048,2460.7,2460.2,4.06469]
[1727821494255,4.06409,2460.6,2460.2,3.72110152]
[1727821495151,0.7409,2460.9,2460.4,4.51210152]
[1727821495152,4.80455,2460.9,2460.4,4.51210152]
[1727821495308,0.46063348,2461.1,2460.4,4.51210152]
[1727821495309,4.06333,2461.1,2460.6,7.78506152]
[1727821495550,4.06333,2461.1,2460.4,0.791]
[1727821495551,0.7409,2461.3,2460.8,4.51210152]
[1727821495781,1.08032605,2461.3,2460.8,0.791]
[1727821495984,4.0635,2461.0,2460.8,0.791]
[1727821496487,5.14333605,2461.3,2460.8,0.791]
[1727821496789,2.5816015,2461.5,2461.2,4.51210152]
[1727821496790,4.06268,2461.5,2461.2,4.51210152]
[1727821497297,4.06265,2461.5,2461.2,4.51210152]
[1727821497452,4.06234,2461.7,2461.2,4.51210152]
[1727821497650,4.06258,2461.5,2461.2,4.51210152]
[1727821497848,4.06258,2461.5,2461.2,0.791]
[1727821499789,8.1247,2461.7,2461.2,8.57515152]
[1727821499997,4.06234,2461.7,2461.2,8.57515152]
[1727821500193,7.06201,2461.9,2461.2,8.57515152]
[1727821500408,4.06182,2462.0,2461.6,4.51210152]
[1727821500691,4.06158,2462.1,2461.8,3.72110152]
[1727821500891,4.06158,2462.1,2461.6,4.85335]
[1727821500892,4.0619,2461.9,2461.6,0.791]
[1727821501054,4.0619,2461.9,2461.3,0.791]
[1727821501055,4.06271,2461.5,2461.3,0.791]
[1727821501451,4.0624,2461.6,2461.3,0.791]
[1727821501877,4.06257,2461.5,2461.3,0.791]
[1727821502586,4.06299,2461.3,2460.9,0.791]
[1727821502765,0.812491,2461.5,2460.9,0.791]
[1727821502766,4.06281,2461.4,2460.9,0.791]
[1727821502989,4.06266,2461.5,2461.0,4.06332]
[1727821503196,4.875259,2461.4,2460.9,4.85448]
[1727821503902,0.812509,2461.4,2460.9,0.791]
[1727821504076,4.06314,2461.2,2460.9,0.791]
[1727821504486,0.23043863,2461.1,2460.9,0.791]
[1727821505477,0.23043863,2461.1,2460.7,8.91854]
[1727821506792,0.23043863,2461.1,2460.7,4.85477]
[1727821507378,0.23043863,2461.1,2460.8,4.06368]
[1727821507585,0.7409,2461.3,2460.8,4.06368]
[1727821507918,0.23043863,2461.0,2460.8,4.06368]
[1727821508083,5.690492,2461.3,2460.8,4.06368]
[1727821508283,0.23043863,2460.9,2460.8,4.06368]
[1727821508485,5.690492,2461.3,2460.8,4.06368]
[1727821508679,0.23043863,2460.9,2460.8,4.06368]
[1727821509207,5.690492,2461.3,2460.8,4.06368]
[1727821509528,5.690492,2461.3,2460.4,4.06426]
[1727821509529,0.23043863,2460.9,2460.4,4.06426]
[1727821509684,4.06339,2461.0,2460.5,4.06406]
[1727821509875,0.23043863,2460.8,2460.6,4.06402]
[1727821510079,4.0635,2461.0,2460.4,8.12854]
[1727821510327,4.0635,2461.0,2460.3,0.791]
[1727821510328,0.23043863,2460.7,2460.3,0.791]
[1727821510557,4.06413,2460.6,2460.0,7.78600152]
[1727821510773,0.23043863,2460.6,2460.2,4.06467]
[1727821510929,0.23043863,2460.6,2460.2,11.85034152]
[1727821511109,4.06381,2460.8,2460.2,11.85034152]
[1727821511314,0.23043863,2460.5,2460.2,11.85034152]
[1727821511526,5.77965154,2460.8,2460.4,4.06435]
[1727821511527,4.06381,2460.8,2460.4,4.06435]
[1727821511724,4.80446,2460.9,2460.5,0.791]
[1727821512064,0.7409,2460.9,2460.5,0.791]
[1727821512217,4.80445,2460.9,2460.5,0.791]
[1727821513427,4.06402,2460.7,2460.2,8.59680152]
[1727821513647,4.06402,2460.7,2460.2,0.8111]
[1727821513957,4.06419,2460.6,2460.2,0.8111]
[1727821514167,4.06419,2460.6,2460.0,4.06491]
[1727821514168,4.06429,2460.5,2460.0,4.06491]
[1727821514395,4.06429,2460.5,2460.0,6.44691637]
[1727821514749,4.06429,2460.5,2460.0,10.51186637]
[1727821515153,4.06419,2460.6,2460.0,4.87601]
[1727821515154,4.06438,2460.4,2460.0,4.87601]
[1727821515384,0.7409,2460.5,2460.1,4.06486]
[1727821516096,4.80521,2460.5,2460.0,4.87599]
[1727821516303,4.06438,2460.4,2460.0,4.87599]
[1727821516706,0.7409,2460.5,2460.1,4.06479]
[1727821516858,4.06414,2460.6,2460.1,4.06479]
[1727821518802,4.06414,2460.6,2460.2,4.06464]
[1727821518960,3.0,2460.7,2460.3,4.06452]
[1727821519295,3.0,2460.7,2460.1,0.894078]
[1727821519508,4.69643572,2461.2,2459.8,0.8111]
[1727821519509,4.06479,2460.2,2459.8,0.8111]
[1727821519797,4.06516,2460.0,2459.6,0.8111]
[1727821520015,8.13029,2460.0,2459.6,0.8111]
[1727821520297,4.06544,2459.8,2459.4,0.8111]
[1727821520694,4.06548,2459.8,2459.2,4.87744]
[1727821520855,0.23002403,2459.7,2459.2,4.87744]
[1727821521055,0.23002403,2459.7,2459.2,6.14393515]
[1727821521260,4.29563403,2459.7,2459.2,6.14393515]
[1727821521561,4.06578,2459.6,2459.2,0.8111]
[1727821521760,4.29559659,2459.6,2459.2,0.8111]
[1727821525404,4.29559659,2459.6,2459.2,4.87745]
[1727821527715,0.22981659,2459.6,2459.3,4.06617]
[1727821528001,4.0655,2459.8,2459.4,1.26647215]
[1727821528205,3.0,2459.8,2459.4,5.33248215]
[1727821528407,0.22920713,2459.7,2459.4,9.39842215]
[1727821528567,3.0,2459.8,2459.4,9.39842215]
[1727821528762,0.22920713,2459.6,2459.4,5.33241215]
[1727821528966,3.0,2459.8,2459.5,4.59908122]
[1727821529707,3.0,2459.8,2459.2,0.8111]
[1727821529908,4.06622,2459.3,2459.0,0.7896]
[1727821530123,4.0667,2459.0,2458.7,0.7896]
[1727821530677,4.06653,2459.1,2458.7,4.85678]
[1727821530867,4.06651,2459.2,2458.8,0.485678]
[1727821531068,4.06651,2459.2,2458.7,4.85678]
[1727821533293,4.06658,2459.1,2458.7,4.85678]
[1727821534489,0.22908173,2459.0,2458.7,4.85678]
[1727821534928,0.22908173,2459.0,2458.8,3.72110152]
[1727821535139,0.22908173,2459.0,2458.9,4.85645]
[1727821535286,0.22908173,2459.0,2458.9,6.12090715]
[1727821535486,4.0662,2459.3,2458.9,6.12090715]
[1727821535687,0.22902118,2459.0,2458.9,6.12090715]
[1727821535894,4.0662,2459.3,2458.9,6.12090715]
[1727821536129,0.22902118,2459.0,2458.9,6.12090715]
[1727821536314,4.0662,2459.3,2458.9,6.12090715]
[1727821536525,0.22902118,2459.0,2458.9,4.85645]
[1727821536829,4.06587,2459.5,2459.0,4.06658]
[1727821537232,7.38,2459.8,2459.3,0.7896]
[1727821537405,4.06539,2459.8,2459.3,0.7896]
[1727821537605,4.06571,2459.6,2459.3,0.7896]
[1727821538037,4.06599,2459.5,2459.3,0.7896]
[1727821538245,4.06581,2459.6,2459.0,4.51070152]
[1727821538452,8.13162,2459.6,2459.1,4.51758015]
[1727821538814,4.06591,2459.5,2459.1,4.51758015]
[1727821539439,4.06591,2459.5,2459.1,0.45107015]
[1727821541856,4.06581,2459.6,2459.1,4.51759015]
[1727821542011,4.0655,2459.8,2459.3,4.85564]
[1727821542220,4.0655,2459.8,2459.3,0.7896]
[1727821542434,4.0655,2459.8,2459.4,4.06602]
[1727821543210,4.06549,2459.8,2459.3,4.85578]
[1727821543414,4.06555,2459.7,2459.3,4.85578]
[1727821543652,4.06555,2459.7,2459.3,6.25549558]
[1727821544357,4.06588,2459.5,2459.1,1.21587015]
[1727821544758,4.80656,2459.7,2459.1,1.21587015]
[1727821544759,4.06567,2459.7,2459.2,7.78737152]
[1727821544911,4.06567,2459.7,2459.3,4.1474173]
[1727821545116,4.06549,2459.8,2459.4,4.83078]
[1727821547951,4.06549,2459.8,2459.4,0.7648]
[1727821548359,8.13098,2459.8,2459.4,0.7648]
[1727821548673,4.06549,2459.8,2459.4,0.7648]
[1727821549538,0.22927632,2459.7,2459.4,0.7648]
[1727821550056,0.22932819,2459.6,2459.4,1.62000015]
[1727821550257,4.06517,2460.0,2459.5,4.06586]
[1727821550258,4.06515,2460.0,2459.5,4.06586]
[1727821550471,3.0,2460.1,2459.4,8.64221167]
[1727821550472,3.0,2460.1,2459.6,8.55152152]
[1727821550673,4.06484,2460.2,2459.4,0.85520015]
[1727821550674,4.06448,2460.4,2459.9,0.7648]
[1727821550821,4.06448,2460.4,2460.0,3.72110152]
[1727821551246,0.7409,2460.8,2459.9,0.7648]
[1727821551247,4.46200152,2460.8,2459.9,0.7648]
[1727821551472,4.06498,2460.1,2459.9,0.7648]
[1727821551633,4.06473,2460.2,2459.9,0.7648]
[1727821551869,4.06495,2460.1,2459.9,0.7648]
[1727821552054,4.06471,2460.2,2459.9,0.7648]
[1727821552656,4.06455,2460.3,2459.9,0.7648]
[1727821552865,4.06455,2460.3,2459.9,5.719516]
[1727821553163,8.12924,2460.3,2459.9,1.654356]
[1727821553462,4.06455,2460.3,2459.9,0.7648]
[1727821556493,4.06433,2460.5,2460.0,3.72110152]
[1727821556656,3.0,2460.5,2460.2,0.7648]
[1727821557289,4.06362,2460.9,2460.4,4.06437]
[1727821557791,4.06362,2460.9,2460.2,9.81214467]
[1727821557977,4.06375,2460.8,2460.3,4.0645]
[1727821558147,4.06362,2460.9,2460.2,9.81214467]
[1727821558148,4.06389,2460.7,2460.2,9.81214467]
[1727821558351,4.06389,2460.7,2460.2,13.87677467]
[1727821558792,2.99884664,2461.0,2460.2,0.7648]
[1727821559087,4.06435,2460.5,2460.2,0.7648]
[1727821559405,8.12866,2460.5,2460.2,0.7648]
[1727821560297,4.06431,2460.5,2460.2,0.7648]
[1727821560762,4.06447,2460.4,2460.2,0.7648]
[1727821560968,4.065,2460.1,2459.9,0.7648]
[1727821561163,4.06499,2460.1,2459.9,0.7648]
[1727821561662,4.06488,2460.1,2459.9,0.7648]
[1727821561901,4.06488,2460.1,2459.6,4.06558]
[1727821561902,4.06537,2459.8,2459.5,0.7648]
[1727821564403,0.21473237,2459.7,2459.5,0.7648]
[1727821564602,4.06537,2459.8,2459.5,0.7648]
[1727821564793,0.21473237,2459.6,2459.5,0.7648]
[1727821564973,4.06537,2459.8,2459.5,0.7648]
[1727821565173,0.21473237,2459.7,2459.5,0.7648]
[1727821565374,4.06537,2459.8,2459.5,0.7648]
[1727821565619,0.21473237,2459.7,2459.5,0.7648]
[1727821565811,4.06537,2459.8,2459.5,0.7648]
[1727821566023,0.21473237,2459.6,2459.5,0.7648]
[1727821566221,4.06537,2459.8,2459.5,0.7648]
[1727821566434,0.21473237,2459.6,2459.5,0.7648]
[1727821566589,4.06537,2459.8,2459.5,0.7648]
[1727821566776,0.21473237,2459.6,2459.5,0.7648]
[1727821566985,4.06537,2459.8,2459.5,0.7648]
[1727821567228,0.21473237,2459.7,2459.5,0.7648]
[1727821567532,4.06537,2459.8,2459.5,0.7648]
[1727821567697,0.21473237,2459.6,2459.5,0.7648]
[1727821567905,4.06537,2459.8,2459.5,0.7648]
[1727821568121,0.21473237,2459.6,2459.5,0.7648]
[1727821568289,4.06537,2459.8,2459.5,0.7648]
[1727821568636,0.406537,2459.7,2459.2,0.7648]
[1727821568800,0.21473237,2459.7,2459.4,4.06601]
[1727821569128,4.06548,2459.8,2459.4,4.06601]
[1727821569743,0.21473237,2459.7,2459.4,7.78700152]
[1727821569897,0.21473237,2459.7,2459.6,0.7648]
[1727821570102,7.06516,2460.0,2459.6,4.8305]
[1727821570285,0.21473237,2459.7,2459.6,4.8305]
[1727821570487,7.06516,2460.0,2459.6,0.7648]
[1727821570742,0.21473237,2459.7,2459.6,0.7648]
[1727821570895,3.0,2459.9,2459.6,1.61997415]
[1727821571097,0.21473237,2459.7,2459.6,0.7648]
[1727821571329,3.0,2459.9,2459.6,0.7648]
[1727821571530,0.21473237,2459.7,2459.6,0.7648]
[1727821571740,3.0,2459.9,2459.6,0.7648]
[1727821571923,0.21473237,2459.7,2459.6,0.7648]
[1727821572124,3.0,2459.9,2459.4,4.06601]
[1727821572125,4.06539,2459.8,2459.4,4.06601]
[1727821572341,0.21466753,2459.7,2459.4,0.7648]
[1727821572507,0.21466753,2459.7,2459.2,4.47740152]
[1727821572709,4.80621,2459.9,2459.5,4.82216]
[1727821572710,4.06531,2459.9,2459.5,4.82216]
[1727821572915,0.21436933,2459.6,2459.5,4.82216]
[1727821573127,7.06504,2460.0,2459.5,4.82206]
[1727821573327,0.21436933,2459.6,2459.5,6.08298115]
[1727821573528,4.80557,2460.3,2459.5,1.26092115]
[1727821573742,4.06432,2460.5,2460.0,4.06494]
[1727821574044,8.12869,2460.5,2460.0,4.06494]
[1727821574196,4.06432,2460.5,2460.1,0.7563]
[1727821574396,4.06432,2460.5,2460.1,1.61053415]
[1727821574799,4.06432,2460.5,2460.1,5.67539415]
[1727821575041,4.06413,2460.6,2460.1,5.67539415]
[1727821575541,4.06413,2460.6,2460.1,1.61053415]
[1727821575698,4.06426,2460.5,2460.1,1.61053415]
[1727821576346,4.06413,2460.6,2460.1,5.67529415]
[1727821576551,7.80473,2460.8,2460.2,5.03868242]
[1727821576839,3.0,2460.6,2460.2,5.03868242]
[1727821577040,3.0,2460.6,2460.2,0.97402242]
[1727821577351,4.06373,2460.8,2460.3,8.54192152]
[1727821577506,4.06404,2460.6,2460.3,0.7563]
[1727821577701,4.06425,2460.5,2460.3,0.7563]
[1727821578159,4.06425,2460.5,2460.1,0.7563]
[1727821578332,4.06425,2460.5,2460.1,2.01702615]
[1727821578511,4.06425,2460.5,2460.1,6.08187615]
[1727821578942,4.06385,2460.8,2460.1,6.08187615]
[1727821579236,4.06405,2460.6,2460.2,4.06468]
[1727821579398,4.06405,2460.6,2460.2,5.07934162]
[1727821579798,0.21436933,2460.5,2460.2,5.07934162]
[1727821580445,0.21436933,2460.5,2460.2,1.01466162]
[1727821582414,4.27858933,2460.5,2460.1,0.7563]
[1727821583447,4.27858933,2460.5,2460.1,4.82115]
[1727821583953,0.21436933,2460.5,2460.3,7.78557152]
[1727821584163,0.21436933,2460.5,2460.4,4.82067]
[1727821584306,4.06339,2461.0,2460.5,8.12831]
[1727821584513,3.7409,2461.2,2460.4,0.7563]
[1727821584723,4.06409,2460.6,2460.2,0.7563]
[1727821585103,4.06401,2460.7,2460.2,0.7563]
[1727821585302,4.06406,2460.6,2460.2,4.82099]
[1727821586347,4.06351,2461.0,2460.3,7.78562152]
[1727821586554,4.06351,2461.0,2460.5,4.0642]
[1727821586555,4.06347,2461.0,2460.5,4.0642]
[1727821586850,4.06347,2461.0,2460.5,7.78522152]
[1727821587150,8.12695,2461.0,2460.5,7.78522152]
[1727821587347,8.12694,2461.0,2460.5,7.78522152]
[1727821587649,4.06347,2461.0,2460.5,9.04581667]
[1727821588609,4.06339,2461.0,2460.6,4.06397]
[1727821589763,4.06324,2461.1,2460.7,0.8064]
[1727821590271,4.06339,2461.0,2460.7,0.8064]
[1727821592669,1.112655,2461.0,2460.5,0.8064]
[1727821592873,4.0643,2460.5,2460.2,0.8064]
[1727821593668,4.06404,2460.6,2460.2,0.8064]
[1727821594170,4.06404,2460.6,2460.2,4.87106]
[1727821594334,4.06404,2460.6,2460.2,0.8064]
[1727821594535,0.21506941,2460.5,2460.2,0.8064]
[1727821595383,0.21506941,2460.5,2460.2,4.87103]
[1727821595877,0.21504781,2460.4,2460.2,4.87103]
[1727821596177,4.06407,2460.6,2460.2,4.87103]
[1727821596379,0.21504781,2460.3,2460.2,4.87103]
[1727821596859,4.06407,2460.6,2460.2,4.87103]
[1727821597078,0.21504781,2460.3,2460.2,4.87103]
[1727821597276,4.06407,2460.6,2460.2,4.87103]
[1727821597444,0.21504781,2460.3,2460.2,4.87103]
[1727821597645,4.06407,2460.6,2460.2,4.87103]
[1727821597952,0.21504781,2460.3,2460.2,6.13672115]
[1727821598158,3.0,2461.0,2460.6,4.06403]
[1727821598389,7.06347,2461.0,2460.5,4.06411]
[1727821598595,0.21506077,2460.9,2460.5,8.12823]
[1727821600505,0.21506077,2460.9,2460.8,4.87011]
[1727821600664,0.4246251,2461.2,2461.0,4.06334]
[1727821600855,0.4246251,2461.2,2461.1,0.8064]
[1727821601071,4.06265,2461.5,2461.1,0.8064]
[1727821601298,4.06272,2461.4,2461.1,0.8064]
[1727821601465,4.06272,2461.4,2461.1,0.7433]
[1727821603253,4.06301,2461.3,2461.1,0.7433]
[1727821603479,4.06313,2461.2,2460.7,4.06376]
[1727821603679,4.06301,2461.3,2460.8,4.06362]
[1727821604063,1.112537,2461.4,2460.8,4.06362]
[1727821604264,4.06273,2461.4,2460.8,4.06362]
[1727821604513,3.0,2461.4,2461.0,0.7578]
[1727821604716,12.18327,2461.7,2461.1,4.06321]
[1727821605019,4.06237,2461.7,2461.1,4.06321]
[1727821605171,8.12472,2461.7,2461.3,0.7578]
[1727821605366,9.017592,2461.7,2461.3,0.7578]
[1727821605572,4.06243,2461.6,2461.3,0.7578]
[1727821606008,4.0626,2461.5,2461.1,0.7578]
[1727821606513,4.06243,2461.6,2461.1,4.82101]
[1727821609474,0.20830455,2461.5,2461.1,4.82101]
[1727821609817,0.20830455,2461.5,2461.1,8.88415]
[1727821610421,0.20830455,2461.5,2461.1,8.88407]
[1727821610929,0.20830455,2461.5,2461.4,4.06272]
[1727821611075,3.0,2461.9,2461.4,7.78382152]
[1727821611279,0.20830455,2461.5,2461.4,7.78382152]
[1727821611511,3.0,2461.9,2461.5,4.0625]
[1727821611714,0.804,2462.1,2461.5,4.0625]
[1727821611715,4.06125,2462.3,2461.8,7.78309152]
[1727821611921,4.06125,2462.3,2461.9,4.81966]
[1727821612089,5.2895064,2462.5,2462.0,7.78283152]
[1727821612415,4.4855064,2462.5,2462.0,11.84449152]
[1727821612602,8.5465464,2462.5,2462.0,7.78276152]
[1727821612920,4.06117,2462.4,2461.9,4.81963]
[1727821615000,4.06103,2462.5,2462.1,4.06155]
[1727821615200,4.06069,2462.7,2462.2,4.81905]
[1727821615519,0.42442501,2462.8,2462.3,4.06122]
[1727821615783,3.0,2462.7,2462.3,4.06122]
[1727821616115,0.42442501,2462.8,2462.4,3.72110152]
[1727821616309,4.06036,2462.9,2462.4,7.78209152]
[1727821617032,4.06036,2462.9,2462.5,0.7578]
[1727821617336,4.06093,2462.5,2462.2,0.7578]
[1727821617703,8.12193,2462.5,2462.2,0.7578]
[1727821618101,8.12193,2462.5,2462.0,0.7578]
[1727821618437,4.06112,2462.4,2462.0,0.7578]
[1727821618621,4.467232,2462.4,2462.0,0.7578]
[1727821618997,4.06142,2462.2,2461.8,0.7578]
[1727821619396,0.804,2462.2,2461.5,4.82023]
[1727821619601,4.06184,2462.0,2461.5,4.82023]
[1727821619937,4.06184,2462.0,2461.6,4.06238]
[1727821620144,4.53857399,2462.0,2461.6,4.06238]
[1727821620436,4.53857399,2462.0,2461.5,4.82023]
[1727821620864,0.47673399,2462.0,2461.5,4.82023]
[1727821621172,0.47673399,2462.0,2461.6,4.06231]
[1727821621326,0.47673399,2462.0,2461.5,4.82023]
[1727821621327,0.47673399,2462.0,2461.7,4.06211]
[1727821623062,4.06152,2462.2,2461.7,4.06211]
[1727821623411,4.06165,2462.1,2461.6,4.06239]
[1727821623679,4.06196,2461.9,2461.4,4.06264]
[1727821623879,0.812317,2462.0,2461.6,4.06237]
[1727821624585,0.20951306,2461.9,2461.4,4.06261]
[1727821624727,0.20951306,2461.9,2461.3,4.47890152]
[1727821624728,4.06224,2461.7,2461.3,4.82068]
[1727821625126,4.86607,2461.8,2461.3,4.82068]
[1727821625365,0.20951306,2461.6,2461.3,4.82068]
[1727821625675,0.20951306,2461.5,2461.4,4.06262]
[1727821625973,4.06192,2461.9,2461.4,4.06262]
[1727821626130,0.20951306,2461.5,2461.3,0.7578]
[1727821626326,4.06243,2461.6,2461.3,0.7578]
[1727821626530,4.06225,2461.7,2461.3,0.7578]
[1727821626531,0.20951306,2461.4,2461.3,0.7578]
[1727821626744,8.50447,2461.9,2461.3,4.82058]
[1727821627068,4.06216,2461.8,2461.3,4.82058]
[1727821627238,5.319003,2461.7,2461.3,0.7578]
[1727821627733,0.20951306,2461.6,2461.3,0.7578]
[1727821627937,0.20951306,2461.6,2461.2,4.06304]
[1727821628255,0.20951306,2461.6,2461.2,8.12601]
[1727821628426,0.20951306,2461.6,2461.2,4.06297]
[1727821629254,0.20951306,2461.6,2461.3,4.06286]
[1727821629672,7.06208,2461.8,2461.3,4.06286]
[1727821629869,0.20897375,2461.5,2461.3,4.06286]
[1727821630370,1.150448,2461.7,2461.3,4.06286]
[1727821630578,0.20897375,2461.4,2461.3,4.06286]
[1727821631111,1.150448,2461.7,2461.3,4.06286]
[1727821631319,1.150448,2461.7,2461.3,4.06289]
[1727821631320,0.20897375,2461.4,2461.3,4.06289]
[1727821631620,3.0,2461.8,2461.3,4.06289]
[1727821631927,0.744238,2461.7,2461.3,4.06289]
[1727821632126,0.20897375,2461.7,2461.4,0.7578]
[1727821632486,7.06207,2461.8,2461.4,0.7578]
[1727821632701,0.20897806,2461.6,2461.4,0.7578]
[1727821632882,7.06207,2461.8,2461.4,0.7578]
[1727821633082,0.20897806,2461.5,2461.4,0.7578]
[1727821633297,4.230845,2461.8,2461.4,4.82049]
[1727821633588,0.20897806,2461.5,2461.4,4.82049]
[1727821634110,4.230845,2461.8,2461.4,4.82049]
[1727821634305,0.20897806,2461.5,2461.4,4.82049]
[1727821634616,4.230845,2461.8,2461.4,4.82049]
[1727821634996,0.20897806,2461.7,2461.4,4.82049]
[1727821635197,4.230845,2461.8,2461.4,4.82049]
[1727821635520,0.20897806,2461.7,2461.4,4.82049]
[1727821636041,0.20897806,2461.6,2461.4,4.82049]
[1727821636203,8.292925,2461.8,2461.4,4.82049]
[1727821636548,0.20897806,2461.7,2461.4,4.82049]
[1727821636895,8.292925,2461.8,2461.4,4.82049]
[1727821637101,0.20897806,2461.6,2461.4,4.82049]
[1727821637343,8.292925,2461.8,2461.4,4.82049]
[1727821637545,0.20897806,2461.5,2461.4,4.82049]
[1727821637745,8.292925,2461.8,2461.4,4.82049]
[1727821637905,0.20897806,2461.5,2461.4,4.82049]
[1727821638106,4.06225,2461.7,2461.4,0.7578]
[1727821638307,0.20897806,2461.5,2461.4,0.7578]
[1727821638516,5.2977405,2461.7,2461.4,0.7578]
[1727821638717,0.20897806,2461.5,2461.4,0.7578]
[1727821638940,5.2977405,2461.7,2461.4,0.7578]
[1727821639138,0.20897806,2461.5,2461.4,0.7578]
[1727821639309,8.12458,2461.7,2461.4,0.7578]
[1727821639504,0.20897806,2461.5,2461.4,0.7578]
[1727821639707,4.06225,2461.7,2461.4,0.7578]
[1727821639919,0.20897806,2461.5,2461.4,0.7578]
[1727821640402,4.06225,2461.7,2461.4,0.7578]
[1727821640603,0.20897806,2461.6,2461.3,4.06287]
[1727821642571,0.20897806,2461.6,2461.2,0.8095]
[1727821642869,4.06346,2461.0,2460.8,0.8095]
[1727821643169,4.06346,2461.0,2460.4,0.8095]
[1727821643170,4.06372,2460.8,2460.4,0.8095]
[1727821643370,0.61533269,2460.9,2460.4,0.8095]
[1727821643666,0.61533269,2460.9,2460.5,4.06413]
[1727821643667,0.20898669,2460.8,2460.5,4.06413]
[1727821644170,0.20898669,2460.8,2460.6,4.06404]
[1727821644327,4.06346,2461.0,2460.6,4.06404]
[1727821644524,0.20898669,2460.7,2460.6,4.06404]
[1727821644720,4.956522,2461.0,2460.6,4.06404]
[1727821644966,0.20898669,2460.7,2460.5,8.12825]
[1727821645137,4.956522,2461.0,2460.6,4.06404]
[1727821645335,4.06346,2461.0,2460.5,7.78522152]
[1727821645864,4.06346,2461.0,2460.5,11.84933152]
[1727821646072,4.06346,2461.0,2460.5,7.78521152]
[1727821647075,4.06306,2461.2,2460.7,4.0638]
[1727821647373,4.06306,2461.2,2460.8,0.8095]
[1727821647538,4.06251,2461.6,2461.1,3.72110152]
[1727821647729,8.12501,2461.6,2461.1,7.78431152]
[1727821647931,8.12498,2461.6,2461.1,4.06321]
[1727821648555,4.06248,2461.6,2461.1,4.06321]
[1727821648778,4.06258,2461.5,2461.1,4.06321]
[1727821649432,4.06258,2461.5,2461.0,4.81768]
[1727821649629,4.06302,2461.3,2460.8,4.06358]
[1727821649830,4.84924,2461.4,2460.7,1.61374015]
[1727821649831,4.06342,2461.0,2460.7,0.7543]
[1727821650072,4.06342,2461.0,2460.4,4.06429]
[1727821650073,8.12692,2461.0,2460.5,4.81849]
[1727821650277,4.06358,2460.9,2460.5,4.81849]
[1727821650441,0.7865,2461.0,2460.5,0.7543]
[1727821650630,0.7865,2461.0,2460.2,0.7543]
[1727821650631,4.06412,2460.6,2460.2,0.7543]
[1727821650836,4.06409,2460.6,2460.2,0.7543]
[1727821651059,0.7865,2461.0,2460.2,0.7543]
[1727821651060,4.06402,2460.7,2460.2,0.7543]
[1727821651269,4.87698,2460.6,2460.2,0.7543]
[1727821651568,4.0642,2460.6,2460.2,0.7543]
[1727821653059,8.12836,2460.6,2460.2,0.7543]
[1727821653234,4.06423,2460.5,2460.2,0.7543]
[1727821653629,4.84996,2461.0,2460.2,0.7543]
[1727821653630,4.06381,2460.8,2460.2,0.7543]
[1727821653879,4.06406,2460.6,2460.2,0.7543]
[1727821654244,4.06431,2460.5,2460.2,0.7543]
[1727821654442,4.06431,2460.5,2459.9,0.7543]
[1727821654443,0.7865,2460.5,2459.9,0.7543]
[1727821654643,0.20867155,2460.4,2460.1,4.06486]
[1727821655075,4.06405,2460.6,2460.1,4.06486]
[1727821655292,0.20803682,2460.3,2460.1,4.06486]
[1727821655582,4.9961421,2460.6,2460.1,4.06486]
[1727821655583,0.20802386,2460.5,2460.1,4.06486]
[1727821655730,4.9961421,2460.6,2460.1,4.06486]
[1727821655933,0.20802386,2460.4,2460.1,4.06486]
[1727821656146,4.9961421,2460.6,2460.1,4.06486]